[Event "*** Titled Tuesday Blitz"]
[Site "Chess.com"]
[Date "2021.03.09"]
[Round "5"]
[White "Skat2704"]
[Black "ViktoriyaTarasova"]
[Result "1-0"]
[WhiteElo "2581"]
[BlackElo "2322"]
[TimeControl "180+1"]
[EndTime "10:58:59 PST"]
[Termination "Skat2704 won by checkmate"]

1. d4 {[%clk 0:03:00.9]} 1... Nf6 {[%clk 0:02:59.8]} 2. c4 {[%clk 0:02:57.5]}
2... e6 {[%clk 0:03:00]} 3. Nf3 {[%clk 0:02:55.9]} 3... b6 {[%clk 0:02:59.7]} 4.
g3 {[%clk 0:02:54.6]} 4... Ba6 {[%clk 0:02:59.4]} 5. Qc2 {[%clk 0:02:52.5]} 5...
d5 {[%clk 0:02:58.8]} 6. cxd5 {[%clk 0:02:47.7]} 6... exd5 {[%clk 0:02:56.8]} 7.
Bg2 {[%clk 0:02:45.5]} 7... Bd6 {[%clk 0:02:56.9]} 8. Nc3 {[%clk 0:02:42.8]}
8... O-O {[%clk 0:02:55.4]} 9. O-O {[%clk 0:02:40.5]} 9... Nbd7 {[%clk
0:02:49.4]} 10. Nh4 {[%clk 0:02:34.5]} 10... Bb7 {[%clk 0:02:25.6]} 11. Nf5
{[%clk 0:02:32.2]} 11... Bb4 {[%clk 0:02:09.7]} 12. Nb5 {[%clk 0:02:27.5]} 12...
c6 {[%clk 0:01:56.4]} 13. Nbd6 {[%clk 0:02:22.4]} 13... Bxd6 {[%clk 0:01:46.7]}
14. Nxd6 {[%clk 0:02:22.2]} 14... Ba6 {[%clk 0:01:47]} 15. Qxc6 {[%clk
0:02:16.4]} 15... Bxe2 {[%clk 0:01:43.5]} 16. Re1 {[%clk 0:02:14.1]} 16... Ba6
{[%clk 0:01:23]} 17. Bg5 {[%clk 0:02:09.7]} 17... h6 {[%clk 0:01:19.2]} 18. Bxf6
{[%clk 0:02:05.9]} 18... Nxf6 {[%clk 0:01:17.9]} 19. Re5 {[%clk 0:02:05.6]}
19... Ng4 {[%clk 0:00:56.1]} 20. Rxd5 {[%clk 0:01:59.8]} 20... Qf6 {[%clk
0:00:54.9]} 21. Nf5 {[%clk 0:01:45.5]} 21... Qxc6 {[%clk 0:00:52.4]} 22. Ne7+
{[%clk 0:01:44.7]} 22... Kh8 {[%clk 0:00:50.5]} 23. Nxc6 {[%clk 0:01:44.5]}
23... Bb7 {[%clk 0:00:42.4]} 24. Rd7 {[%clk 0:01:41]} 24... Bxc6 {[%clk
0:00:41.1]} 25. Bxc6 {[%clk 0:01:41.6]} 25... Rad8 {[%clk 0:00:40.5]} 26. Rxd8
{[%clk 0:01:36.4]} 26... Rxd8 {[%clk 0:00:39.7]} 27. d5 {[%clk 0:01:36.1]} 27...
Nf6 {[%clk 0:00:36]} 28. Rd1 {[%clk 0:01:33.3]} 28... Rd6 {[%clk 0:00:35.8]} 29.
Kg2 {[%clk 0:01:29.6]} 29... Kg8 {[%clk 0:00:35.4]} 30. Kf3 {[%clk 0:01:27.2]}
30... Kf8 {[%clk 0:00:35.8]} 31. Kf4 {[%clk 0:01:15.1]} 31... Ke7 {[%clk
0:00:35.6]} 32. Re1+ {[%clk 0:01:12.5]} 32... Kd8 {[%clk 0:00:35.5]} 33. Ke5
{[%clk 0:01:10.7]} 33... Ke7 {[%clk 0:00:29.3]} 34. Kd4+ {[%clk 0:01:07.8]}
34... Kd8 {[%clk 0:00:29.9]} 35. b4 {[%clk 0:01:03.4]} 35... h5 {[%clk
0:00:24.1]} 36. b5 {[%clk 0:01:00.2]} 36... g6 {[%clk 0:00:21.4]} 37. Re3 {[%clk
0:00:55.5]} 37... g5 {[%clk 0:00:16.3]} 38. Ra3 {[%clk 0:00:50.4]} 38... Ng4
{[%clk 0:00:15.1]} 39. Rxa7 {[%clk 0:00:48.4]} 39... Nxf2 {[%clk 0:00:14.8]} 40.
Rxf7 {[%clk 0:00:43.9]} 40... Ng4 {[%clk 0:00:14.7]} 41. h3 {[%clk 0:00:41.7]}
41... Nh6 {[%clk 0:00:13]} 42. Rb7 {[%clk 0:00:36.4]} 42... Nf5+ {[%clk
0:00:12.4]} 43. Ke5 {[%clk 0:00:34.3]} 43... g4 {[%clk 0:00:10]} 44. Kxf5 {[%clk
0:00:32.5]} 44... gxh3 {[%clk 0:00:09.6]} 45. Ke5 {[%clk 0:00:31.4]} 45... Rh6
{[%clk 0:00:06.1]} 46. d6 {[%clk 0:00:28.4]} 46... h2 {[%clk 0:00:06.3]} 47.
Rb8# {[%clk 0:00:27.6]} 1-0

[Event "*** Titled Tuesday Blitz"]
[Site "Chess.com"]
[Date "2021.03.09"]
[Round "5"]
[White "WilliamSchill"]
[Black "suyu28"]
[Result "1-0"]
[WhiteElo "2050"]
[BlackElo "2606"]
[TimeControl "180+1"]
[EndTime "10:58:59 PST"]
[Termination "WilliamSchill won on time"]

1. e4 {[%clk 0:01:49.9]} 1... e5 {[%clk 0:02:54.2]} 2. Nf3 {[%clk 0:01:49.3]}
2... Nc6 {[%clk 0:02:53.7]} 3. Nc3 {[%clk 0:01:49.4]} 3... Bc5 {[%clk
0:02:38.5]} 4. Nxe5 {[%clk 0:01:48.6]} 4... Nxe5 {[%clk 0:02:32.7]} 5. d4 {[%clk
0:01:48.5]} 5... Bd6 {[%clk 0:02:24.7]} 6. dxe5 {[%clk 0:01:47.7]} 6... Bxe5
{[%clk 0:02:25.6]} 7. Qf3 {[%clk 0:01:32.5]} 7... Nf6 {[%clk 0:02:23.4]} 8. Bf4
{[%clk 0:01:25.4]} 8... d6 {[%clk 0:02:10.2]} 9. Bxe5 {[%clk 0:01:17.5]} 9...
dxe5 {[%clk 0:02:10.2]} 10. Bc4 {[%clk 0:01:03.7]} 10... O-O {[%clk 0:02:04.8]}
11. h3 {[%clk 0:00:58]} 11... Be6 {[%clk 0:01:42.1]} 12. Bxe6 {[%clk 0:00:50.7]}
12... fxe6 {[%clk 0:01:41.8]} 13. Rd1 {[%clk 0:00:44.7]} 13... Qe7 {[%clk
0:01:36.9]} 14. Qe2 {[%clk 0:00:44.6]} 14... Rad8 {[%clk 0:01:32.6]} 15. O-O
{[%clk 0:00:44.3]} 15... Rxd1 {[%clk 0:01:17.5]} 16. Rxd1 {[%clk 0:00:43.6]}
16... Rd8 {[%clk 0:01:14.4]} 17. Rxd8+ {[%clk 0:00:39.7]} 17... Qxd8 {[%clk
0:01:15.3]} 18. Qd3 {[%clk 0:00:39.4]} 18... Qxd3 {[%clk 0:00:51.7]} 19. cxd3
{[%clk 0:00:38.9]} 19... a6 {[%clk 0:00:36.6]} 20. Kf1 {[%clk 0:00:39]} 20... b5
{[%clk 0:00:30.8]} 21. Ke2 {[%clk 0:00:38.5]} 21... Kf7 {[%clk 0:00:28.3]} 22.
Ke3 {[%clk 0:00:38.6]} 22... Ke7 {[%clk 0:00:26.9]} 23. g3 {[%clk 0:00:38.8]}
23... c5 {[%clk 0:00:20.1]} 24. f4 {[%clk 0:00:38]} 24... exf4+ {[%clk 0:00:14]}
25. gxf4 {[%clk 0:00:37]} 25... Nd7 {[%clk 0:00:11]} 26. d4 {[%clk 0:00:32.9]}
26... c4 {[%clk 0:00:08.4]} 27. d5 {[%clk 0:00:23.2]} 27... Nb6 {[%clk
0:00:08.5]} 28. Kd4 {[%clk 0:00:21.4]} 28... exd5 {[%clk 0:00:06.5]} 29. Nxd5+
{[%clk 0:00:19.9]} 29... Nxd5 {[%clk 0:00:06.5]} 30. Kxd5 {[%clk 0:00:20.2]}
30... Kd7 {[%clk 0:00:06.4]} 31. a4 {[%clk 0:00:18.8]} 31... bxa4 {[%clk
0:00:02]} 32. Kxc4 {[%clk 0:00:18.3]} 32... Kd6 {[%clk 0:00:02.3]} 33. Kb4
{[%clk 0:00:14.8]} 33... g5 {[%clk 0:00:02.3]} 34. fxg5 {[%clk 0:00:14.2]} 34...
Ke5 {[%clk 0:00:02.8]} 35. h4 {[%clk 0:00:14.2]} 35... Kxe4 {[%clk 0:00:02.7]}
36. h5 {[%clk 0:00:14.3]} 36... Kf5 {[%clk 0:00:02.6]} 37. g6 {[%clk 0:00:14.5]}
37... hxg6 {[%clk 0:00:02.9]} 38. hxg6 {[%clk 0:00:14.7]} 38... Kxg6 {[%clk
0:00:03.8]} 39. Kxa4 {[%clk 0:00:14.9]} 39... Kf6 {[%clk 0:00:03.6]} 40. Ka5
{[%clk 0:00:15.2]} 40... Ke6 {[%clk 0:00:04.3]} 41. Kxa6 {[%clk 0:00:15.4]}
41... Kd5 {[%clk 0:00:04.9]} 42. b4 {[%clk 0:00:15.6]} 42... Kc4 {[%clk
0:00:04.4]} 43. b5 {[%clk 0:00:15.9]} 1-0

[Event "*** Titled Tuesday Blitz"]
[Site "Chess.com"]
[Date "2021.03.09"]
[Round "5"]
[White "SanchezKelvin"]
[Black "MasterMK73"]
[Result "1-0"]
[WhiteElo "2585"]
[BlackElo "2297"]
[TimeControl "180+1"]
[EndTime "10:58:59 PST"]
[Termination "SanchezKelvin won by resignation"]

1. d4 {[%clk 0:03:00.9]} 1... d5 {[%clk 0:02:58.9]} 2. c4 {[%clk 0:02:59.4]}
2... e6 {[%clk 0:02:57.7]} 3. Nf3 {[%clk 0:02:59.7]} 3... c6 {[%clk 0:02:57.3]}
4. Nc3 {[%clk 0:02:58.6]} 4... dxc4 {[%clk 0:02:57.2]} 5. a4 {[%clk 0:02:56.4]}
5... Bb4 {[%clk 0:02:53.6]} 6. Bd2 {[%clk 0:02:53.4]} 6... a5 {[%clk 0:02:49.5]}
7. e3 {[%clk 0:02:50.4]} 7... b5 {[%clk 0:02:48.7]} 8. Ne5 {[%clk 0:02:50.2]}
8... Nf6 {[%clk 0:02:22]} 9. g4 {[%clk 0:02:25.8]} 9... Nd5 {[%clk 0:01:35.9]}
10. axb5 {[%clk 0:02:06.8]} 10... Bxc3 {[%clk 0:01:29.4]} 11. bxc3 {[%clk
0:02:05.8]} 11... cxb5 {[%clk 0:01:29]} 12. e4 {[%clk 0:01:58.3]} 12... Nb6
{[%clk 0:01:25.7]} 13. Qb1 {[%clk 0:01:53.5]} 13... Bd7 {[%clk 0:01:18.7]} 14.
Rg1 {[%clk 0:01:33.5]} 14... f6 {[%clk 0:01:09.3]} 15. Nxd7 {[%clk 0:01:29]}
15... Qxd7 {[%clk 0:01:08.7]} 16. g5 {[%clk 0:01:29.5]} 16... f5 {[%clk
0:00:59.8]} 17. exf5 {[%clk 0:01:25.4]} 17... exf5 {[%clk 0:00:59.3]} 18. Rg3
{[%clk 0:01:13.9]} 18... O-O {[%clk 0:00:53.5]} 19. Bg2 {[%clk 0:01:11.8]} 19...
Re8+ {[%clk 0:00:52.1]} 20. Kf1 {[%clk 0:01:11.3]} 20... Ra7 {[%clk 0:00:50.3]}
21. g6 {[%clk 0:01:04.6]} 21... h6 {[%clk 0:00:48.1]} 22. Rf3 {[%clk 0:00:55.8]}
22... Rf8 {[%clk 0:00:39.4]} 23. Bh3 {[%clk 0:00:55.1]} 23... Qd5 {[%clk
0:00:30.2]} 24. Bg2 {[%clk 0:00:30.2]} 24... Qe6 {[%clk 0:00:21.8]} 25. Bf4
{[%clk 0:00:29.6]} 25... N8d7 {[%clk 0:00:17.5]} 26. Qxb5 {[%clk 0:00:25]} 26...
Qd5 {[%clk 0:00:16.3]} 27. Qb2 {[%clk 0:00:21.1]} 27... a4 {[%clk 0:00:15.3]}
28. Re3 {[%clk 0:00:21.4]} 28... a3 {[%clk 0:00:15.2]} 29. Bxd5+ {[%clk
0:00:20.4]} 29... Nxd5 {[%clk 0:00:11.1]} 30. Rxa3 {[%clk 0:00:20]} 30... Rxa3
{[%clk 0:00:10.8]} 31. Qxa3 {[%clk 0:00:20.3]} 31... Nxf4 {[%clk 0:00:10.3]} 32.
Qd6 {[%clk 0:00:20.2]} 32... Nf6 {[%clk 0:00:07.5]} 33. Qxf4 {[%clk 0:00:20]}
33... Nd5 {[%clk 0:00:06.9]} 34. Qe5 {[%clk 0:00:19.9]} 34... Nxe3+ {[%clk
0:00:07.1]} 35. fxe3 {[%clk 0:00:20.1]} 35... Rf6 {[%clk 0:00:04.8]} 36. Qe8+
{[%clk 0:00:19.9]} 36... Rf8 {[%clk 0:00:04.6]} 37. Qe6+ {[%clk 0:00:20]} 37...
Kh8 {[%clk 0:00:02.9]} 38. Qxc4 {[%clk 0:00:19.4]} 38... f4 {[%clk 0:00:03.5]}
39. e4 {[%clk 0:00:19.3]} 39... f3 {[%clk 0:00:03]} 40. e5 {[%clk 0:00:19.5]}
1-0

[Event "*** Titled Tuesday Blitz"]
[Site "Chess.com"]
[Date "2021.03.09"]
[Round "5"]
[White "ShcufNaiRolf"]
[Black "VladaSviridova"]
[Result "1-0"]
[WhiteElo "2377"]
[BlackElo "2211"]
[TimeControl "180+1"]
[EndTime "10:59:00 PST"]
[Termination "ShcufNaiRolf won on time"]

1. e4 {[%clk 0:03:00.9]} 1... e6 {[%clk 0:03:00]} 2. d4 {[%clk 0:02:52.7]} 2...
d5 {[%clk 0:03:00.1]} 3. Nc3 {[%clk 0:02:52]} 3... Bb4 {[%clk 0:02:59.5]} 4.
exd5 {[%clk 0:02:51.7]} 4... exd5 {[%clk 0:02:59.2]} 5. Bd3 {[%clk 0:02:51.8]}
5... Nc6 {[%clk 0:02:59.1]} 6. Nf3 {[%clk 0:02:51.5]} 6... Nge7 {[%clk 0:02:59]}
7. O-O {[%clk 0:02:49.4]} 7... Bg4 {[%clk 0:02:54.4]} 8. h3 {[%clk 0:02:17.8]}
8... Bxf3 {[%clk 0:02:40.7]} 9. Qxf3 {[%clk 0:02:18.7]} 9... Nxd4 {[%clk
0:02:32.1]} 10. Qg4 {[%clk 0:02:18.5]} 10... Bxc3 {[%clk 0:02:26.5]} 11. bxc3
{[%clk 0:02:18.4]} 11... Ne6 {[%clk 0:02:25.8]} 12. c4 {[%clk 0:02:10.8]} 12...
d4 {[%clk 0:02:05.8]} 13. Ba3 {[%clk 0:02:01]} 13... O-O {[%clk 0:01:31.1]} 14.
Qe4 {[%clk 0:01:52.3]} 14... g6 {[%clk 0:00:54.5]} 15. f4 {[%clk 0:01:50.1]}
15... Re8 {[%clk 0:00:45.7]} 16. Qxb7 {[%clk 0:01:29.2]} 16... Rb8 {[%clk
0:00:43.4]} 17. Qf3 {[%clk 0:01:27.2]} 17... Ng7 {[%clk 0:00:19.6]} 18. g4
{[%clk 0:01:17.6]} 18... f5 {[%clk 0:00:17.7]} 19. Rae1 {[%clk 0:01:04]} 19...
Qd7 {[%clk 0:00:12.4]} 20. Re2 {[%clk 0:00:19.5]} 20... Nc6 {[%clk 0:00:08.9]}
21. Qd5+ {[%clk 0:00:18.6]} 21... Qxd5 {[%clk 0:00:08.3]} 22. cxd5 {[%clk
0:00:19.5]} 22... Rxe2 {[%clk 0:00:08.2]} 23. Bxe2 {[%clk 0:00:19.7]} 23... Na5
{[%clk 0:00:06.9]} 24. Rd1 {[%clk 0:00:15.1]} 24... Rd8 {[%clk 0:00:03.5]} 25.
Rxd4 {[%clk 0:00:14.6]} 25... Nc6 {[%clk 0:00:02.6]} 26. Rd1 {[%clk 0:00:13.4]}
26... Nb8 {[%clk 0:00:02]} 27. c4 {[%clk 0:00:13.9]} 27... Nd7 {[%clk
0:00:01.5]} 28. c5 {[%clk 0:00:10]} 28... Nf6 {[%clk 0:00:01.9]} 29. Bf3 {[%clk
0:00:09.4]} 29... fxg4 {[%clk 0:00:01.7]} 30. hxg4 {[%clk 0:00:10.3]} 30... h5
{[%clk 0:00:02.2]} 31. g5 {[%clk 0:00:10]} 31... Nd7 {[%clk 0:00:01.6]} 32. d6
{[%clk 0:00:09.3]} 32... cxd6 {[%clk 0:00:01.6]} 33. Rxd6 {[%clk 0:00:09.1]}
33... Ne8 {[%clk 0:00:02]} 34. Rxg6+ {[%clk 0:00:09.2]} 34... Kh7 {[%clk
0:00:02.2]} 35. Ra6 {[%clk 0:00:09.9]} 35... Nb8 {[%clk 0:00:01.8]} 36. Rxa7+
{[%clk 0:00:10.1]} 36... Kg8 {[%clk 0:00:02]} 37. Be4 {[%clk 0:00:10.1]} 37...
Rd4 {[%clk 0:00:01.8]} 38. Bh7+ {[%clk 0:00:10.2]} 38... Kf8 {[%clk 0:00:01]}
39. c6+ {[%clk 0:00:10]} 1-0

[Event "*** Titled Tuesday Blitz"]
[Site "Chess.com"]
[Date "2021.03.09"]
[Round "5"]
[White "Jospem"]
[Black "DFeco"]
[Result "1-0"]
[WhiteElo "2932"]
[BlackElo "2297"]
[TimeControl "180+1"]
[EndTime "10:59:01 PST"]
[Termination "Jospem won by checkmate"]

1. e4 {[%clk 0:02:59.2]} 1... e5 {[%clk 0:02:59.4]} 2. Nf3 {[%clk 0:02:54.8]}
2... Nc6 {[%clk 0:02:58.6]} 3. Bb5 {[%clk 0:02:55]} 3... g6 {[%clk 0:02:56.6]}
4. c3 {[%clk 0:02:54.9]} 4... a6 {[%clk 0:02:55.1]} 5. Ba4 {[%clk 0:02:54.9]}
5... d6 {[%clk 0:02:55.6]} 6. d4 {[%clk 0:02:54.6]} 6... Bd7 {[%clk 0:02:56.1]}
7. O-O {[%clk 0:02:54.6]} 7... Bg7 {[%clk 0:02:56.3]} 8. h3 {[%clk 0:02:54.6]}
8... Nf6 {[%clk 0:02:55.7]} 9. Bc2 {[%clk 0:02:49.4]} 9... O-O {[%clk
0:02:54.8]} 10. Be3 {[%clk 0:02:50]} 10... Re8 {[%clk 0:02:44.8]} 11. Nbd2
{[%clk 0:02:49.1]} 11... h6 {[%clk 0:02:41.8]} 12. Re1 {[%clk 0:02:48.8]} 12...
Kh7 {[%clk 0:02:40.3]} 13. a3 {[%clk 0:02:47.4]} 13... Qe7 {[%clk 0:02:36.8]}
14. d5 {[%clk 0:02:43]} 14... Nd8 {[%clk 0:02:33.1]} 15. c4 {[%clk 0:02:43.3]}
15... Ng8 {[%clk 0:02:29.7]} 16. b4 {[%clk 0:02:40.3]} 16... Rf8 {[%clk
0:02:29.2]} 17. c5 {[%clk 0:02:38.1]} 17... f5 {[%clk 0:02:28.4]} 18. cxd6
{[%clk 0:02:35]} 18... cxd6 {[%clk 0:02:26.9]} 19. Nc4 {[%clk 0:02:29.8]} 19...
f4 {[%clk 0:02:22.8]} 20. Bd2 {[%clk 0:02:26.4]} 20... g5 {[%clk 0:02:22.4]} 21.
Nb6 {[%clk 0:02:26]} 21... Rb8 {[%clk 0:02:20.6]} 22. Ba4 {[%clk 0:02:19.9]}
22... Bxa4 {[%clk 0:02:17.3]} 23. Qxa4 {[%clk 0:02:20.8]} 23... Nf6 {[%clk
0:02:14.3]} 24. Rac1 {[%clk 0:02:16.8]} 24... Nf7 {[%clk 0:02:06.7]} 25. Rc3
{[%clk 0:02:06.1]} 25... h5 {[%clk 0:02:04.8]} 26. Qc2 {[%clk 0:02:04.5]} 26...
g4 {[%clk 0:02:01.7]} 27. Nh4 {[%clk 0:01:55]} 27... Nh6 {[%clk 0:01:53.4]} 28.
Rc7 {[%clk 0:01:53]} 28... Qd8 {[%clk 0:01:49.5]} 29. Bxf4 {[%clk 0:01:08]}
29... Ne8 {[%clk 0:01:33.5]} 30. Bxh6 {[%clk 0:01:07.4]} 30... Qxc7 {[%clk
0:00:58.6]} 31. Qxc7 {[%clk 0:01:05.6]} 31... Nxc7 {[%clk 0:00:58.2]} 32. Bxg7
{[%clk 0:01:06.1]} 32... Kxg7 {[%clk 0:00:58.2]} 33. Nd7 {[%clk 0:00:58.9]}
33... Nb5 {[%clk 0:00:44.7]} 34. Nxb8 {[%clk 0:00:57.7]} 34... Rxb8 {[%clk
0:00:40.2]} 35. Nf5+ {[%clk 0:00:58.3]} 35... Kf6 {[%clk 0:00:40.2]} 36. hxg4
{[%clk 0:00:56.6]} 36... hxg4 {[%clk 0:00:39.6]} 37. a4 {[%clk 0:00:49.1]} 37...
Nc3 {[%clk 0:00:39.1]} 38. Nxd6 {[%clk 0:00:40.8]} 38... Nxa4 {[%clk 0:00:38.6]}
39. Rc1 {[%clk 0:00:41.1]} 39... b6 {[%clk 0:00:27.9]} 40. Rc6 {[%clk
0:00:40.4]} 40... Kg7 {[%clk 0:00:20.1]} 41. Nf5+ {[%clk 0:00:36.9]} 41... Kf7
{[%clk 0:00:19.7]} 42. Rc7+ {[%clk 0:00:37]} 42... Kf6 {[%clk 0:00:18.9]} 43.
Rc6+ {[%clk 0:00:37.6]} 43... Kf7 {[%clk 0:00:18.7]} 44. Nh6+ {[%clk 0:00:38.2]}
44... Kg7 {[%clk 0:00:17.4]} 45. Nxg4 {[%clk 0:00:39.1]} 45... b5 {[%clk
0:00:12.5]} 46. Nxe5 {[%clk 0:00:38.5]} 46... Nb2 {[%clk 0:00:11.2]} 47. f4
{[%clk 0:00:38.6]} 47... a5 {[%clk 0:00:10.7]} 48. Rc7+ {[%clk 0:00:39]} 48...
Kg8 {[%clk 0:00:10]} 49. Nd7 {[%clk 0:00:36.8]} 49... Rd8 {[%clk 0:00:08.7]} 50.
Nf6+ {[%clk 0:00:37.1]} 50... Kf8 {[%clk 0:00:07.6]} 51. e5 {[%clk 0:00:37.7]}
51... Nc4 {[%clk 0:00:06.5]} 52. e6 {[%clk 0:00:37.5]} 52... Rd6 {[%clk
0:00:02.9]} 53. Rf7# {[%clk 0:00:37.2]} 1-0

[Event "*** Titled Tuesday Blitz"]
[Site "Chess.com"]
[Date "2021.03.09"]
[Round "5"]
[White "ChristopherYoo"]
[Black "K_A_S_T_O_R"]
[Result "1-0"]
[WhiteElo "2939"]
[BlackElo "2802"]
[TimeControl "180+1"]
[EndTime "10:59:03 PST"]
[Termination "ChristopherYoo won by resignation"]

1. d4 {[%clk 0:03:00.9]} 1... d5 {[%clk 0:02:58.6]} 2. Nf3 {[%clk 0:03:00.4]}
2... Nf6 {[%clk 0:02:58.1]} 3. c4 {[%clk 0:03:00]} 3... c6 {[%clk 0:02:58]} 4.
e3 {[%clk 0:02:59.5]} 4... Bg4 {[%clk 0:02:57]} 5. Qb3 {[%clk 0:02:57.2]} 5...
Qb6 {[%clk 0:02:56.3]} 6. Ne5 {[%clk 0:02:56]} 6... Be6 {[%clk 0:02:52.5]} 7.
Nc3 {[%clk 0:02:54.6]} 7... dxc4 {[%clk 0:02:27]} 8. Bxc4 {[%clk 0:02:52.4]}
8... Bxc4 {[%clk 0:02:24.9]} 9. Qxc4 {[%clk 0:02:46.3]} 9... e6 {[%clk
0:02:24.3]} 10. O-O {[%clk 0:02:45.8]} 10... Be7 {[%clk 0:02:17.7]} 11. e4
{[%clk 0:02:40.6]} 11... O-O {[%clk 0:02:16.7]} 12. Be3 {[%clk 0:02:37]} 12...
Qa6 {[%clk 0:02:16.6]} 13. Qxa6 {[%clk 0:02:18.4]} 13... Nxa6 {[%clk 0:02:15.8]}
14. a3 {[%clk 0:02:18.3]} 14... Rfd8 {[%clk 0:02:13.4]} 15. Rfd1 {[%clk
0:02:17.7]} 15... Nc7 {[%clk 0:02:08.5]} 16. Rac1 {[%clk 0:02:03.9]} 16... Nd7
{[%clk 0:01:58.1]} 17. Nc4 {[%clk 0:01:59.2]} 17... b6 {[%clk 0:01:47.3]} 18.
Bf4 {[%clk 0:01:55]} 18... Rac8 {[%clk 0:01:42.8]} 19. Bd6 {[%clk 0:01:39.2]}
19... Kf8 {[%clk 0:01:41.1]} 20. e5 {[%clk 0:01:32.4]} 20... Ne8 {[%clk
0:01:24]} 21. Bxe7+ {[%clk 0:01:30.5]} 21... Kxe7 {[%clk 0:01:24.5]} 22. Ne4
{[%clk 0:01:30.8]} 22... Nb8 {[%clk 0:01:21.2]} 23. b4 {[%clk 0:01:14.7]} 23...
Rd5 {[%clk 0:01:06]} 24. Ne3 {[%clk 0:01:11.8]} 24... Rdd8 {[%clk 0:01:03.7]}
25. f4 {[%clk 0:01:03.9]} 25... f5 {[%clk 0:01:01.7]} 26. Nc3 {[%clk 0:00:52.5]}
26... Nc7 {[%clk 0:00:56.4]} 27. a4 {[%clk 0:00:48.1]} 27... Rd7 {[%clk
0:00:42.8]} 28. b5 {[%clk 0:00:47.4]} 28... Rcd8 {[%clk 0:00:37.7]} 29. bxc6
{[%clk 0:00:46.3]} 29... Nxc6 {[%clk 0:00:31.8]} 30. d5 {[%clk 0:00:46.2]} 30...
exd5 {[%clk 0:00:25.9]} 31. Nxf5+ {[%clk 0:00:45.8]} 31... Ke6 {[%clk
0:00:25.7]} 32. Nd6 {[%clk 0:00:41.6]} 32... d4 {[%clk 0:00:14.9]} 33. Ne2
{[%clk 0:00:35.1]} 33... Nxe5 {[%clk 0:00:11.8]} 34. fxe5 {[%clk 0:00:19.7]}
34... Kxe5 {[%clk 0:00:11.9]} 35. Nc4+ {[%clk 0:00:16.5]} 35... Ke4 {[%clk
0:00:12.3]} 36. Rf1 {[%clk 0:00:10.8]} 36... d3 {[%clk 0:00:11.7]} 37. Ng3+
{[%clk 0:00:08.5]} 37... Kd4 {[%clk 0:00:11.7]} 38. Nf5+ {[%clk 0:00:08.8]}
38... Kd5 {[%clk 0:00:09]} 39. Rf3 {[%clk 0:00:08.4]} 39... Ke6 {[%clk
0:00:07.8]} 40. Re1+ {[%clk 0:00:08.2]} 40... Kd5 {[%clk 0:00:06.7]} 41. Ne5
{[%clk 0:00:07.1]} 41... Re8 {[%clk 0:00:05.9]} 42. Rxd3+ {[%clk 0:00:06.8]}
42... Kc5 {[%clk 0:00:06.2]} 43. Nxd7+ {[%clk 0:00:06.7]} 1-0

[Event "*** Titled Tuesday Blitz"]
[Site "Chess.com"]
[Date "2021.03.09"]
[Round "5"]
[White "FGHSMN"]
[Black "PavelChernomordik"]
[Result "0-1"]
[WhiteElo "2673"]
[BlackElo "2386"]
[TimeControl "180+1"]
[EndTime "10:59:03 PST"]
[Termination "PavelChernomordik won by resignation"]

1. e4 {[%clk 0:02:19.6]} 1... g6 {[%clk 0:02:58.6]} 2. d4 {[%clk 0:02:19.5]}
2... Bg7 {[%clk 0:02:58.3]} 3. Nc3 {[%clk 0:02:20.4]} 3... d6 {[%clk 0:02:58.1]}
4. f4 {[%clk 0:02:20.5]} 4... a6 {[%clk 0:02:57.7]} 5. Nf3 {[%clk 0:02:21.4]}
5... b5 {[%clk 0:02:57.5]} 6. Bd3 {[%clk 0:02:21.9]} 6... Nd7 {[%clk 0:02:57.3]}
7. O-O {[%clk 0:02:22]} 7... c5 {[%clk 0:02:56.9]} 8. dxc5 {[%clk 0:02:12.3]}
8... Nxc5 {[%clk 0:02:55.9]} 9. Be3 {[%clk 0:02:11.5]} 9... Bb7 {[%clk
0:02:52.7]} 10. e5 {[%clk 0:02:05.5]} 10... Nxd3 {[%clk 0:02:49.3]} 11. cxd3
{[%clk 0:02:06.4]} 11... Nh6 {[%clk 0:02:45.2]} 12. d4 {[%clk 0:02:05.7]} 12...
O-O {[%clk 0:02:40.6]} 13. d5 {[%clk 0:02:04.4]} 13... Ng4 {[%clk 0:02:36.6]}
14. Bd4 {[%clk 0:01:50.2]} 14... b4 {[%clk 0:02:32.5]} 15. Ne2 {[%clk
0:01:44.8]} 15... dxe5 {[%clk 0:02:23.8]} 16. fxe5 {[%clk 0:01:40]} 16... Qxd5
{[%clk 0:02:20.1]} 17. Nf4 {[%clk 0:01:32.7]} 17... Qe4 {[%clk 0:02:16.1]} 18.
Nd3 {[%clk 0:01:29.5]} 18... Ne3 {[%clk 0:02:04.9]} 19. Nc5 {[%clk 0:01:13]}
19... Nxd1 {[%clk 0:02:00.2]} 20. Nxe4 {[%clk 0:01:13.3]} 20... Bxe4 {[%clk
0:01:59.6]} 21. Raxd1 {[%clk 0:01:14.2]} 21... Rac8 {[%clk 0:01:54.8]} 22. Ng5
{[%clk 0:01:12.3]} 22... Bd5 {[%clk 0:01:45.1]} 23. a3 {[%clk 0:01:05.3]} 23...
bxa3 {[%clk 0:01:35.6]} 24. bxa3 {[%clk 0:01:06.2]} 24... Rc2 {[%clk 0:01:35.4]}
25. Rf2 {[%clk 0:01:06.2]} 25... Rfc8 {[%clk 0:01:33.4]} 26. h3 {[%clk
0:00:58.6]} 26... Rxf2 {[%clk 0:01:30.2]} 27. Bxf2 {[%clk 0:00:59.5]} 27... e6
{[%clk 0:01:29.9]} 28. Bd4 {[%clk 0:00:54.4]} 28... Rc2 {[%clk 0:01:29]} 29. Nf3
{[%clk 0:00:51.7]} 29... Bf8 {[%clk 0:01:28.5]} 30. Rb1 {[%clk 0:00:45.1]} 30...
Bxa3 {[%clk 0:01:19.8]} 31. Rb8+ {[%clk 0:00:44.2]} 31... Kg7 {[%clk 0:01:19.1]}
32. Be3 {[%clk 0:00:36.6]} 32... Bc5 {[%clk 0:01:11.6]} 33. Nd4 {[%clk
0:00:34.7]} 33... Rxg2+ {[%clk 0:01:10.3]} 34. Kf1 {[%clk 0:00:33.6]} 34... Rg3
{[%clk 0:01:01.5]} 35. Nxe6+ {[%clk 0:00:33.7]} 35... fxe6 {[%clk 0:00:53.1]}
36. Bxc5 {[%clk 0:00:34.6]} 36... Rxh3 {[%clk 0:00:52.6]} 37. Be7 {[%clk
0:00:34.8]} 37... Kh6 {[%clk 0:00:49.9]} 38. Bf6 {[%clk 0:00:32.8]} 38... Kh5
{[%clk 0:00:49]} 39. Rh8 {[%clk 0:00:13.8]} 39... Kg4 {[%clk 0:00:46.6]} 40. Ke2
{[%clk 0:00:13.9]} 40... Kf5 {[%clk 0:00:43.7]} 41. Rc8 {[%clk 0:00:09.6]} 41...
Ke4 {[%clk 0:00:42.8]} 42. Rc1 {[%clk 0:00:06.7]} 42... Rh2+ {[%clk 0:00:40.7]}
43. Kd1 {[%clk 0:00:07.6]} 43... a5 {[%clk 0:00:37.6]} 44. Ke1 {[%clk
0:00:08.4]} 44... a4 {[%clk 0:00:36]} 45. Ra1 {[%clk 0:00:08.3]} 45... Rh1+
{[%clk 0:00:32.7]} 0-1